Cogmind - Beta 13 @@@ ROGUE MODE // 2024.04.30 @ 00:08:18 Player: Falling_Sands Result: Destroyed by G-47 Trooper with Particle Gun Performance ------------- Evolutions (1) 500 Regions Visited (3) 600 Robots Destroyed (39) 195 Value Destroyed (850) 850 Prototype IDs (3) 60 Alien Tech Used (0) 0 Bonus (0) 0 TOTAL SCORE: 2205 Bonus ------- None Cogmind --------- Core Integrity 0/400 Matter 296/300 Energy 125/125 System Corruption 0% Temperature Cool (9) Movement Treading (160) Location -9/Storage Parts ------- > --- POWER (1) -------- Light Ion Engine > --- PROPULSION (3) --- Light Treads Light Treads > --- UTILITY (3) ------ Large Storage Unit Improved Targeting Computer > --- WEAPON (2) ------- (None) > --- INVENTORY (15) --- Deuterium Engine Aluminum Leg Aluminum Leg VSS Leg VSS Leg Improved Heat Sink High-capacity Matter Pod (200) Weight Redist. System Structural Scanner Reaction Control System Peak State ------------ > --- POWER ------------ Deuterium Engine > --- PROPULSION ------- VSS Leg VSS Leg VSS Leg > --- UTILITY ---------- Large Storage Unit Improved Terrain Scanner Terrain Scan Processor > --- WEAPON ----------- Field Laser Field Laser > --- INVENTORY -------- Deuterium Engine Light Treads Aluminum Leg Aluminum Leg VSS Leg Improved Heat Sink High-capacity Matter Pod Weight Redist. System Structural Scanner Improved Targeting Computer Reaction Control System Reaction Control System Heavy Assault Rifle [Rating: 26] Favorites ----------- Power Ion Engine Engine Ion Engine Power Core Light Nuclear Core Propulsion VSS Leg Treads Light Treads Leg VSS Leg Wheel Compact Wheel Utility Improved Terrain Scanner Device Improved Terrain Scanner Storage Large Storage Unit Processor Terrain Scan Processor Protection Light Armor Plating Weapon Beam Cannon Energy Gun Field Laser Energy Cannon Beam Cannon Ballistic Gun Heavy Assault Rifle Launcher Grenade Launcher Build | -11 -10 -9 -9 ------- Run | Yrd Mat Mat Sto Slots Evolved 2 | . . 2 . Power . | . . . . Propulsion 1 | . . 1 . Utility 1 | . . 1 . Weapon . | . . . . Parts Attached 45 | 7 11 13 14 Power 6 | 2 1 2 1 Engine 5 | 2 1 1 1 Core 1 | . . 1 . Reactor . | . . . . Propulsion 21 | 2 6 8 5 Treads 7 | . 2 . 5 Leg 12 | 2 2 8 . Wheel 2 | . 2 . . Hover . | . . . . Flight . | . . . . Utility 8 | 1 1 1 5 Device 2 | 1 . . 1 Storage 1 | . . 1 . Processor 3 | . 1 . 2 Hackware . | . . . . Protection 2 | . . . 2 Artifact . | . . . . Weapon 10 | 2 3 2 3 Energy Gun 5 | 2 . 2 1 Energy Cannon 2 | . 2 . . Ballistic Gun 2 | . . . 2 Ballistic Cannon . | . . . . Launcher 1 | . 1 . . Special Weapon . | . . . . Impact Weapon . | . . . . Slashing Weapon . | . . . . Piercing Weapon . | . . . . Special Melee Weapon . | . . . . Unidentified Prototypes . | . . . . Parts Lost 10 | . . . 10 Power 1 | . . . 1 Propulsion 3 | . . . 3 Utility 2 | . . . 2 Weapon 4 | . . . 4 Highest Loss Streak 7 | . . . 7 To Critical Strikes . | . . . . Average Slot Usage (%) 94 | . 95 92 94 Engine 11 | . 14 8 11 Treads 3 | . 2 . 5 Leg 22 | . 19 21 26 Wheel 3 | . 5 6 . Device 9 | . 14 11 4 Storage 6 | . . 11 11 Processor 10 | . 10 11 10 Protection 1 | . . . 4 Energy Gun 8 | . 5 6 13 Energy Cannon 10 | . 18 14 . Ballistic Gun 2 | . . . 6 Launcher 1 | . 3 . . Naked Turns . | . . . . Heaviest Build 38 | 9 12 36 38 Greatest Support 66 | 20 32 36 66 Greatest Overweight (x) 9 | . . 3 9 Average Overweight (x) . | . . . . Largest Inventory Capacity 15 | 5 5 15 15 Average Capacity 10 | 5 5 14 15 Most Carried 15 | 3 5 15 15 Average Carried 8 | . 4 9 12 Final Capacity 15 | 5 5 15 15 Final Carried 13 | 2 5 13 10 Class Distribution -------------------- 96% | Mutant 3% | Scavenger-Mutant Dominant Class ---------------- Mutant | -10/Materials Mutant | -9/Materials Mutant | -9/Storage Resources | -11 -10 -9 -9 ----------- Run | Yrd Mat Mat Sto Matter Collected 953 | 260 284 192 217 Remotely . | . . . . Salvage Created 1211 | 111 359 208 533 Parts 77 | 8 21 8 40 Haulers Intercepted 1 | . 1 . . Recyclers Shooed 3 | . 2 . 1 Parts Field Recycled . | . . . . Retrieved Matter . | . . . . Parts Self-Destructed . | . . . . Prevented . | . . . . Kills | -11 -10 -9 -9 ------- Run | Yrd Mat Mat Sto Combat Hostiles Destroyed 23 | 1 8 4 10 Guns 11 | 1 1 . 9 Cannons 7 | . 5 2 . AOE 2 | . 2 . . Classes Destroyed 10 | 3 5 1 1 Worker 4 | 1 . . 3 Builder 2 | . 1 . 1 Tunneler 2 | 2 . . . Hauler 1 | . 1 . . Recycler 1 | . 1 . . Operator 1 | . . . 1 Watcher 5 | . 2 1 2 Swarmer 6 | . 3 . 3 Grunt 13 | 1 5 3 4 Sentry 4 | . . 1 3 Best Kill Streak 6 | 3 3 3 6 Combat Bots Only 3 | 1 2 3 3 Max Kills in Single Turn 2 | 1 2 1 2 Gunslinging 1 | . . . 1 Exploded 1 | . 1 . . Melee . | . . . . Uniques/NPCs Destroyed . | . . . . Combat | -11 -10 -9 -9 -------- Run | Yrd Mat Mat Sto Hostile Shots Fired 181 | 2 20 21 138 Missed 33 | 1 4 2 26 Damage Taken 1979 | 10 239 256 1474 Core 476 | . 62 79 335 Absorbed by Shields . | . . . . Core Remaining (%) 87 | 100 75 . . Volleys Fired 94 | 8 18 16 52 Largest 2 | 2 2 2 2 Hottest 126 | 90 120 126 126 Shots Fired 155 | 16 35 32 72 Gun 107 | 16 7 12 72 Cannon 42 | . 22 20 . Launcher 6 | . 6 . . Special . | . . . . Kinetic 36 | . . . 36 Thermal 113 | 16 29 32 36 Explosive 6 | . 6 . . Electromagnetic . | . . . . Robot Hit Streak 11 | 9 4 6 11 Robot Miss Streak 3 | 2 2 3 3 Penetration Max . | . . . . Secondary Targets 1 | . . . 1 Max Gunslinging Chain 1 | . . . 1 Shots Hit Robots 106 | 12 22 21 51 Core Hits 50 | 5 17 4 24 Critical Kills . | . . . . Critical Parts Destroyed . | . . . . Critical Strikes 3 | . . 1 2 Burn 3 | . . 1 2 Melee Attacks . | . . . . Impact . | . . . . Slashing . | . . . . Piercing . | . . . . Sneak Attacks . | . . . . Combat Hostiles . | . . . . Follow-up Attacks . | . . . . Damage Inflicted 1867 | 172 609 359 727 Guns 1059 | 172 63 134 690 Cannons 468 | . 243 225 . Explosions 303 | . 303 . . Melee . | . . . . Ramming 37 | . . . 37 Kinetic 320 | . . . 320 Thermal 1207 | 172 306 359 370 Explosive 303 | . 303 . . Electromagnetic . | . . . . Impact . | . . . . Slashing . | . . . . Piercing . | . . . . Highest Corruption . | . . . . Average Corruption . | . . . . Corruption Purged . | . . . . Corruption Blocked . | . . . . Overload Shots . | . . . . Overflow Damage . | . . . . Projectiles . | . . . . Explosions . | . . . . Melee . | . . . . Knockbacks . | . . . . Impact . | . . . . Kinetic . | . . . . Secondary . | . . . . Self-Inflicted Damage 70 | . 70 . . Shots 2 | . 2 . . Rammed 16 | . . . 16 Targets Rammed 16 | . . . 16 Kicked . | . . . . Crushed . | . . . . Highest Temperature 540 | 100 240 540 402 Average Temperature 126 | 40 83 211 118 Received Heat Transfer 765 | 6 84 126 549 Effects 18 | . . 10 8 Shutdowns 2 | . . 2 . Energy Bleed 3 | . . 3 . Interference 7 | . . . 7 Short Circuit 1 | . . 1 . Damage (minor) 3 | . . 2 1 Damage (major) 2 | . . 2 . Siege Activations . | . . . . Robots Corrupted . | . . . . Combat Hostiles . | . . . . Parts Fried . | . . . . Impact Corruptions . | . . . . Robots Melted 3 | . . 2 1 Combat Hostiles 3 | . . 2 1 Parts Melted 5 | 2 . 2 1 Heat Transferred 2962 | 446 703 851 962 Parts Sabotaged . | . . . . Parts Stolen . | . . . . Parts Stripped . | . . . . Power Chain Reactions . | . . . . Alert | -11 -10 -9 -9 ------- Run | Yrd Mat Mat Sto Peak Influence 291 | 35 204 214 291 Initial 90 | . 22 72 90 Average 136 | 11 101 133 202 Maximum Alert Level 1 | . 1 1 1 Low Security (%) 78 | 100 96 94 46 Level 1 21 | . 3 5 53 Level 2 . | . . . . Level 3 . | . . . . Level 4 . | . . . . Level 5 . | . . . . High Security . | . . . . Max Security . | . . . . Squads Dispatched 2 | . 2 . . Investigation 1 | . 1 . . Extermination . | . . . . Reinforcement 1 | . 1 . . Assault . | . . . . Garrison . | . . . . Intercept . | . . . . Searches Triggered . | . . . . Construction Impeded . | . . . . Haulers Reinforced . | . . . . Active Scanning Responses . | . . . . Cargo Convoy Interrupts . | . . . . Stealth | -11 -10 -9 -9 --------- Run | Yrd Mat Mat Sto Distress Signals 2 | . 2 . . Communications Jammed . | . . . . Distress Signals . | . . . . Times Spotted 40 | 1 14 5 20 Peak Tracking Total 5 | 1 4 3 5 Tactical Retreats 4 | . 3 . 1 Traps | -11 -10 -9 -9 ------- Run | Yrd Mat Mat Sto Traps Triggered 2 | . 1 1 . Indirectly . | . . . . Trap Hack Attempts . | . . . . Triggered . | . . . . Disarmed . | . . . . Reprogrammed . | . . . . Reused . | . . . . Traps Extracted . | . . . . Installed . | . . . . Triggered . | . . . . Machines | -11 -10 -9 -9 ---------- Run | Yrd Mat Mat Sto Machines Disabled 1 | . . . 1 Max in Single Turn 1 | . . . 1 Machines Repaired . | . . . . Machines Dismantled . | . . . . Machines Sabotaged . | . . . . Overloaded Fab Kills . | . . . . Hacking | -11 -10 -9 -9 --------- Run | Yrd Mat Mat Sto Machines Accessed 6 | . 2 1 3 Terminals 6 | . 2 1 3 Fabricators . | . . . . Repair Stations . | . . . . Recycling Units . | . . . . Scanalyzers . | . . . . Garrison Access . | . . . . Total Hacks 12 | . 6 2 4 Successful 7 | . 3 1 3 Failed 5 | . 3 1 1 Catastrophic . | . . . . Database Lockouts . | . . . . Manual . | . . . . Terminals 12 | . 6 2 4 Fabricators . | . . . . Repair Stations . | . . . . Recycling Units . | . . . . Scanalyzers . | . . . . Garrison Access . | . . . . Terminal Hacks 7 | . 3 1 3 Record 1 | . . . 1 Prototype ID Bank 2 | . 1 1 . Unreport Threat 1 | . 1 . . Dispatch Records 2 | . . . 2 Transport Status 1 | . 1 . . Fabricator Hacks . | . . . . Repair Station Hacks . | . . . . Recycling Unit Hacks . | . . . . Scanalyzer . | . . . . Garrison Access Hacks . | . . . . Unauthorized Hacks . | . . . . Terminals . | . . . . Fabricators . | . . . . Repair Stations . | . . . . Recycling Units . | . . . . Scanalyzers . | . . . . Garrison Access . | . . . . Data Cores Recovered . | . . . . Used . | . . . . Hacking Detections 1 | . 1 . . Full Trace Events . | . . . . Feedback Events . | . . . . Feedback Blocked . | . . . . Robot Schematics Acquired . | . . . . Robots Built . | . . . . Authchips . | . . . . Time . | . . . . Total Robot Build Rating . | . . . . Part Schematics Acquired . | . . . . Parts Built . | . . . . Authchips . | . . . . Time . | . . . . Total Part Build Rating . | . . . . Parts Repaired . | . . . . Time . | . . . . Parts Recycled . | . . . . Recycled Matter . | . . . . Retrieved Matter . | . . . . Retrieved Components . | . . . . Parts Scanalyzed . | . . . . Part Schematics Acquired . | . . . . Parts Damaged . | . . . . Bothacking | -11 -10 -9 -9 ------------ Run | Yrd Mat Mat Sto Used RIF Installer . | . . . . Robots Hacked . | . . . . Non-combat . | . . . . Combat . | . . . . Robot Hacks Applied . | . . . . Relay Couplers Released . | . . . . Fabnet Peak Effective % . | . . . . Robots Rewired . | . . . . Allies Hacked . | . . . . Hacks Repelled . | . . . . Allies | -11 -10 -9 -9 -------- Run | Yrd Mat Mat Sto Total Allies . | . . . . Largest Group . | . . . . Highest-Rated Group . | . . . . Highest-Rated Ally . | . . . . Total Orders . | . . . . Ally Attacks . | . . . . Total Damage . | . . . . Kills . | . . . . Allies Corrupted . | . . . . Allies Melted . | . . . . Intel | -11 -10 -9 -9 ------- Run | Yrd Mat Mat Sto Robot Analysis Total . | . . . . Derelict Logs Recovered . | . . . . Drone Launches . | . . . . Drone Recoveries . | . . . . Exploration | -11 -10 -9 -9 ------------- Run | Yrd Mat Mat Sto Turns Passed 1595 | 123 587 331 554 Spaces Moved 1046 | 82 418 230 316 Core 21 | 20 . . 1 Treads 92 | . 62 . 30 Legs 769 | 62 253 169 285 Wheels 164 | . 103 61 . Hover . | . . . . Flight . | . . . . Fastest Speed 50 | 50 100 90 90 Average Speed 115 | 102 121 107 119 Slowest Speed 500 | 120 160 330 500 Overloaded Moves . | . . . . Propulsion Burnouts . | . . . . Robots Hopped . | . . . . Cave-ins Triggered . | . . . . Exploration Rate (%) 40 | 8 58 28 68 Regions Visited 3 Branch Regions 1 Pre-discovered Areas . | . . . . Known Exits Taken . | . . . . Unknown Exits Taken 3 | 1 1 1 . Scrap Searched . | . . . . Spaces Dug . | . . . . Terrain Destroyed 32 | . 32 . . Melee . | . . . . Projectile . | . . . . AOE 32 | . 32 . . Terrain Rammed . | . . . . Walls Destroyed . | . . . . Machines Disabled . | . . . . Actions | -11 -10 -9 -9 --------- Run | Yrd Mat Mat Sto Total 1263 | 104 464 283 412 Wait 1 | . . 1 . Move 1043 | 81 417 229 316 Hop . | . . . . Pick Up 42 | 8 8 17 9 Fast Attach 5 | . 5 . . Attach 20 | 6 . 6 8 Detach . | . . . . Swap 20 | 1 6 7 6 Drop 22 | . 10 7 5 Fire 94 | 8 18 16 52 Melee . | . . . . Ram . | . . . . Kick . | . . . . Crush 16 | . . . 16 Escape Stasis . | . . . . Rewire . | . . . . Trap . | . . . . Miscellaneous . | . . . . Route ------- -11/Scrapyard -10/Materials (discovered 3 exits: *Mat x2 / [*Min]) -9/Materials -9/Storage History --------- Turn | Location | Event 2 | -11/Scrapyard | Met Revision 17 75 | -11/Scrapyard | Discovered new exit (range 8) 124 | -11/Scrapyard | Entered Materials 279 | -10/Materials | Discovered new exit (range 13) 308 | -10/Materials | Build established: Mutant 406 | -10/Materials | Discovered new exit (range 10) 562 | -10/Materials | Discovered new exit (range 15) 711 | -10/Materials | Entered another Materials area 711 | -9/Materials | Evolved 2 slots: Propulsion x1, Utility x1 987 | -9/Materials | Discovered new exit (range 13) 1042 | -9/Materials | Entered Storage 1460 | -9/Storage | Core integrity fell below 50% 1579 | -9/Storage | Core integrity fell below 20% 1596 | -9/Storage | Destroyed by G-47 Trooper with Particle Gun Last Messages --------------- Lgt. Treads destroyed. U-05 Engineer lays Concrete. G-34 Mercenary destroyed. U-05 Engineer builds a Wall. U-05 Engineer lays Concrete. Deuterium Engine destroyed. U-05 Engineer lays Concrete. Acquired 2 matter. U-05 Engineer lays Concrete. Acquired 2 matter. U-05 Engineer lays Concrete. Slammed into G-47 Trooper. U-05 Engineer lays Concrete. U-05 Engineer builds a Door. Slammed into G-47 Trooper. Acquired 5 matter. M-13 Machinist destroyed. Slammed into G-47 Trooper. Acquired 4 matter. Acquired 2 matter. Map ----- +----------------------------------------------------+ | ?#????####??#### # #?????????? | | ?# ???#????##??# + +? ??? ???? | | #?? ?????###?### # #?????????? | | ?? ??#?"??#???# ! # #?????????? | | ?#????#??R???### # #?????????? | | ?????###?????#?########## #?????? ??? | | #?????? ? ????#????#?# #????????#? | | ???? ???""?? ??#???????## #?????????? | | ? ?????"" ????#?#?????## #?????????? | | ????????????????????????+ #?????????? | | ????????????????????????# #?????????? | | ????????????????????????# +????????#? | | ????????????????????? ?# #?????????? | | ????????????????????????# #?????????? | | ????????????????????????# #?????????? | | #???????????????????????#a #?????????? | | ?##?????????????????????# #?????????? | | ??#?????????????????????# #?????????? | | ?#?#????????????????????# #?????????? | | ???#????????????????????# #?????????? | | ????????????????????????# #?????????? | | ??#?????????????????????# % #######???? | | #?#?????????????????????# ###?? | | ???#?????????############%=! ##+##### | | ?#???????????# + %g%% # | | ????#????????# ###@ * g%+ # | | ???#?????????# ####+###+# # | | ?????????????# # %% # # | | ?##??????????# # = # % # | | ??###????????# # ! # [# | | ??#??????????# # # ## ## | | ?????????????# # # ####? | | ?????????????# # = ####???? | | ?????????????####/##### #??????? | | #??############# + #??????? | | ???# + ##### #??????? | | ???# # ###############?????? | | ???# # # #?????? | | ??# """"" # # #?????? | | ??## """"" # # #?????? | | ???# """"" # + #?????? | | ???# + # #?????? | | ##?############# # #?????? | | #????????###### #####+###+#####?????? | | #????????+ #?????????? | | #????????# #?????????? | | #????????## ### ######### #?????????? | | #?????????#???# #???????# #?????????? | | #?????????#+###+#####???# ##????????? | | #?????????# #???# T#????????? | +----------------------------------------------------+ Best States ------------- Heat Dissipation 28 Energy Generation 14 Energy Capacity 275 Matter Stores 300 Matter Capacity 300 Sight Range 16 Terrain Scan Range 16 Terrain Scan Density 85 Armor Coverage 150 Evasion (%) 61 Targeting Accuracy 6 Recoil Reduction 3 Item Schematics ----------------- None Robot Schematics ------------------ None Fabricated ------------ Nothing Alien Tech Used ----------------- None Achievements -------------- Crack Shot It's Just You Let's See Who's Tougher Loot Pinata Challenges ------------ None Game ------ Seed RecoilSingularityBoregun Manual? 0 Play Time 00:31:57 Cumulative 2.3 hours Start 2024.04.29 @ 23:31:19 End 2024.04.30 @ 00:08:18 Sessions 1 Manual Loads 0 Difficulty Rogue Special Mode None Game No. 3 Rogue 3 Adventurer 0 Explorer 0 Win Type - Total 0 Types 0/0/0/0/0/0/0/0/0 Lore% 1 Gallery% 6 Achievement% 6 Wizard Run 0 Options --------- Layout 1 ASCII 0 Keyboard 0 Movement Mouse Keybinds 0 Fullscreen 1 Font 24/Proggy Map View 50x35 Zoom Use 0% Tactical HUD 0 Map Filters NONE Filters NONE Steam 1 RUN: 124963f4-f70a-460e-954e-2834f893f6e3